Workbook

Sheet Sheet1
A1: Added concentration | B1: Absorbance
A2: 0 | B2: =(2+2*A2+RAND())/10 -> 0.2007567551
A3: 1 | B3: =(2+2*A3+RAND())/10 -> 0.4731668445
A4: 2 | B4: 0.6137211266
A5: 3 | B5: 0.8205949963
E29: m | F29: b | G29: sy | H29: sample conc | I29: sx | J29: table t (95%) | K29: t sx
E30: =SLOPE(B2:B34,A2:A34) -> 0.2000069006 | F30: =INTERCEPT(B2:B34,A2:A34) -> 0.2270495797 | G30: =STEYX(B2:B34,A2:A34) -> 0.03897065165 | H30: =F30/E30 -> 1.135208731 | I30: =G30/ABS(E30)*SQRT(1/H32+AVERAGE(B2:B34)^2/E30^2/DEVSQ(A2:A34)) -> 0.2494389558 | J30: =TINV(0.05,COUNT(A2:A34)-2) -> 4.30265273 | K30: =J30*I30 -> 1.073249204
E31: sm | F31: sb | G31: D | H31: N | I31: DF
E32: =G30*SQRT(H32/G32) -> 0.01742820524 | F32: =G30*SQRT(SUMSQ(A2:A34)/G32) -> 0.03260518645 | G32: =VARP(A2:A34)*H32^2 -> 20 | H32: =COUNT(A2:A34) -> 4 | I32: =H32-2 -> 2
G33: Dilution and unit conversion factor | H33: sample conc | I33: sx | J33: table t (95%) | K33: t sx
G34: 25 | H34: =H30*G34 -> 28.38021827 | I34: =I30/H30*H34 -> 6.235973895 | J34: =J30 -> 4.30265273 | K34: =J34*I34 -> 26.8312301

Sheet Sheet2
A1: Added concentration | B1: Absorbance
A2: 0 | B2: =(2+2*A2+RAND())/10 -> 0.292955686
A3: 1 | B3: =(2+2*A3+RAND())/10 -> 0.4668847671
A4: 2 | B4: 0.6458041838
A5: 3 | B5: 0.8409829951
E29: m | F29: b | G29: sy | H29: sample conc | I29: sx | J29: table t (95%) | K29: t sx
E30: =SLOPE(B2:B34,A2:A34) -> 0.1823001344 | F30: =INTERCEPT(B2:B34,A2:A34) -> 0.2882067064 | G30: =STEYX(B2:B34,A2:A34) -> 0.007721312802 | H30: =F30/E30 -> 1.58094621 | I30: =G30/ABS(E30)*SQRT(1/H32+AVERAGE(B2:B34)^2/E30^2/DEVSQ(A2:A34)) -> 0.06208209584 | J30: =TINV(0.05,COUNT(A2:A34)-2) -> 4.30265273 | K30: =J30*I30 -> 0.2671176991
E31: sm | F31: sb | G31: D | H31: N | I31: DF
E32: =G30*SQRT(H32/G32) -> 0.00345307606 | F32: =G30*SQRT(SUMSQ(A2:A34)/G32) -> 0.006460113773 | G32: =VARP(A2:A34)*H32^2 -> 20 | H32: =COUNT(A2:A34) -> 4 | I32: =H32-2 -> 2
G33: Dilution and unit conversion factor | H33: sample conc | I33: sx | J33: table t (95%) | K33: t sx
G34: 25 | H34: =H30*G34 -> 39.52365524 | I34: =I30/H30*H34 -> 1.552052396 | J34: =J30 -> 4.30265273 | K34: =J34*I34 -> 6.677942479
H35: known | I35: t-test
H36: 18 | I36: =IF(H36<>"",ABS((H34-H36)/I34),"") -> 13.86786638

Sheet Sheet3
A1: Added concentration | B1: Absorbance
A2: 0 | B2: =(2+2*A2+RAND())/10 -> 0.2448242828
A3: 1 | B3: =(2+2*A3+RAND())/10 -> 0.4083137815
A4: 2 | B4: 0.6190345091
A5: 3 | B5: 0.8555091295
E29: m | F29: b | G29: sy | H29: sample conc | I29: sx | J29: table t (95%) | K29: t sx
E30: =SLOPE(B2:B34,A2:A34) -> 0.2042775268 | F30: =INTERCEPT(B2:B34,A2:A34) -> 0.2255041355 | G30: =STEYX(B2:B34,A2:A34) -> 0.02602662863 | H30: =F30/E30 -> 1.103910641 | I30: =G30/ABS(E30)*SQRT(1/H32+AVERAGE(B2:B34)^2/E30^2/DEVSQ(A2:A34)) -> 0.1614654383 | J30: =TINV(0.05,COUNT(A2:A34)-2) -> 4.30265273 | K30: =J30*I30 -> 0.6947297091
E31: sm | F31: sb | G31: D | H31: N | I31: DF
E32: =G30*SQRT(H32/G32) -> 0.01163946217 | F32: =G30*SQRT(SUMSQ(A2:A34)/G32) -> 0.0217754398 | G32: =VARP(A2:A34)*H32^2 -> 20 | H32: =COUNT(A2:A34) -> 4 | I32: =H32-2 -> 2
G33: Dilution and unit conversion factor | H33: sample conc | I33: sx | J33: table t (95%) | K33: t sx
G34: 25 | H34: =H30*G34 -> 27.59776603 | I34: =I30/H30*H34 -> 4.036635959 | J34: =J30 -> 4.30265273 | K34: =J34*I34 -> 17.36824273
H35: known | I35: t-test
H36: 18 | I36: =IF(H36<>"",ABS((H34-H36)/I34),"") -> 2.377664502
